Cogmind - Beta 11 X8 @@@ ROGUE MODE // 2021.11.09 @ 16:59:29 Player: Runia Result: Self-destructed Performance ------------- Evolutions (1) 500 Regions Visited (2) 400 Robots Destroyed (69) 345 Value Destroyed (1767) 1767 Prototype IDs (3) 60 Alien Tech Used (0) 0 Bonus (83) 83 TOTAL SCORE: 3155 Bonus ------- High Alert Combat Kills 83 Cogmind --------- Core Integrity 324/400 Matter 297/300 Energy 265/265 System Corruption 0% Temperature Cool (0) Movement Walking (120) Location -9/Materials Parts ------- > --- POWER (1) -------- Improved Ion Engine > --- PROPULSION (4) --- Aluminum Leg Aluminum Leg > --- UTILITY (2) ------ Cooling System Small Storage Unit > --- WEAPON (2) ------- Beam Rifle Spread Laser > --- INVENTORY (8) ---- Light Armor Plating Medium Armor Plating Medium Armor Plating Spread Laser Heavy Assault Rifle Grenade Launcher Grenade Launcher Grenade Launcher Peak State ------------ > --- POWER ------------ Improved Ion Engine > --- PROPULSION ------- Light Treads Light Treads Compact Wheel Compact Wheel > --- UTILITY ---------- Cooling System Small Storage Unit > --- WEAPON ----------- Beam Rifle Improved Assault Rifle > --- INVENTORY -------- Ion Engine Light Treads Grenade Launcher Grenade Launcher Grenade Launcher Grenade Launcher Grenade Launcher [Rating: 14] Favorites ----------- Power Improved Ion Engine Engine Improved Ion Engine Propulsion Light Treads Treads Light Treads Leg Aluminum Leg Wheel Compact Wheel Utility Small Storage Unit Device Cooling System Storage Small Storage Unit Protection Medium Armor Plating Weapon Light Assault Rifle Energy Gun Medium Laser Ballistic Gun Light Assault Rifle Launcher Grenade Launcher Build | -11 -10 -9 ------- Run | Scr Mat Mat Slots Evolved 2 | . . 2 Power . | . . . Propulsion 2 | . . 2 Utility . | . . . Weapon . | . . . Parts Attached 43 | 2 19 22 Power 5 | . 3 2 Engine 5 | . 3 2 Core . | . . . Reactor . | . . . Propulsion 16 | 2 4 10 Treads 12 | 2 4 6 Leg 2 | . . 2 Wheel 2 | . . 2 Hover . | . . . Flight . | . . . Utility 4 | . 1 3 Device 3 | . 1 2 Storage . | . . . Processor . | . . . Hackware . | . . . Protection 1 | . . 1 Artifact . | . . . Weapon 18 | . 11 7 Energy Gun 9 | . 3 6 Energy Cannon . | . . . Ballistic Gun 5 | . 4 1 Ballistic Cannon . | . . . Launcher 4 | . 4 . Special Weapon . | . . . Impact Weapon . | . . . Slashing Weapon . | . . . Piercing Weapon . | . . . Special Melee Weapon . | . . . Unidentified Prototypes 1 | . . 1 Parts Lost 10 | . 1 9 Power . | . . . Propulsion 7 | . . 7 Utility . | . . . Weapon 3 | . 1 2 Highest Loss Streak 3 | . 1 3 Average Slot Usage (%) 96 | . 95 96 Engine 12 | . 14 11 Treads 27 | . 27 26 Wheel 7 | . . 14 Device 11 | . 12 10 Storage 12 | . 14 11 Energy Gun 14 | . 11 18 Ballistic Gun 8 | . 13 3 Naked Turns . | . . . Heaviest Build 25 | 11 15 25 Greatest Support 80 | 40 40 80 Greatest Overweight (x) 6 | . . 6 Average Overweight (x) . | . . . Largest Inventory Capacity 8 | 8 8 8 Average Capacity 8 | 8 8 8 Most Carried 8 | 5 8 8 Average Carried 7 | 3 6 7 Final Capacity 8 | 8 8 8 Final Carried 8 | 2 8 8 Class Distribution -------------------- 68% | Scavenger-Mutant 31% | Mutant Dominant Class ---------------- Scavenger-Mutant | -10/Materials Scavenger-Mutant | -9/Materials Resources | -11 -10 -9 ----------- Run | Scr Mat Mat Matter Collected 813 | 200 375 238 Remotely . | . . . Salvage Created 2221 | . 1103 1118 Parts 149 | . 74 75 Haulers Intercepted 4 | . 2 2 Recyclers Shooed 4 | . 3 1 Parts Field Recycled . | . . . Retrieved Matter . | . . . Parts Self-Destructed . | . . . Prevented . | . . . Kills | -11 -10 -9 ------- Run | Scr Mat Mat Combat Hostiles Destroyed 50 | . 26 24 Guns 43 | . 20 23 AOE 6 | . 6 . Classes Destroyed 11 | . 8 3 Worker 4 | . 1 3 Builder 2 | . 1 1 Hauler 4 | . 2 2 Recycler 3 | . 3 . Operator 1 | . 1 . Watcher 5 | . 3 2 Swarmer 8 | . 8 . Grunt 33 | . 18 15 Brawler 2 | . . 2 Duelist 1 | . . 1 Sentry 6 | . . 6 Best Kill Streak 5 | . 5 5 Combat Bots Only 5 | . 5 4 Max Kills in Single Turn 3 | . 3 2 Gunslinging 1 | . 1 . Exploded 3 | . 3 . Melee . | . . . Uniques/NPCs Destroyed . | . . . Combat | -11 -10 -9 -------- Run | Scr Mat Mat Damage Taken 2185 | . 972 1213 Core 281 | . 205 76 Absorbed by Shields . | . . . Core Remaining (%) 59 | 100 18 . Volleys Fired 191 | . 107 84 Largest 2 | . 2 2 Hottest 130 | . 70 130 Shots Fired 345 | . 180 165 Gun 338 | . 173 165 Cannon . | . . . Launcher 7 | . 7 . Special . | . . . Kinetic 121 | . 100 21 Thermal 210 | . 66 144 Explosive 7 | . 7 . Electromagnetic 7 | . 7 . Robot Hit Streak 16 | . 11 16 Robot Miss Streak 6 | . 6 5 Penetration Max . | . . . Secondary Targets 5 | . 4 1 Max Gunslinging Chain 1 | . 1 1 Shots Hit Robots 241 | . 112 129 Core Hits 165 | . 68 97 Critical Kills . | . . . Critical Parts Destroyed . | . . . Critical Strikes 12 | . 7 5 Burn 12 | . 7 5 Melee Attacks . | . . . Impact . | . . . Slashing . | . . . Piercing . | . . . Sneak Attacks . | . . . Combat Hostiles . | . . . Follow-up Attacks . | . . . Damage Inflicted 3347 | . 1619 1728 Guns 2848 | . 1120 1728 Cannons . | . . . Explosions 499 | . 499 . Melee . | . . . Ramming . | . . . Kinetic 743 | . 527 216 Thermal 2050 | . 538 1512 Explosive 499 | . 499 . Electromagnetic 55 | . 55 . Impact . | . . . Slashing . | . . . Piercing . | . . . Highest Corruption . | . . . Average Corruption . | . . . Corruption Purged . | . . . Overload Shots . | . . . Overflow Damage 54 | . . 54 Projectiles . | . . . Explosions 54 | . . 54 Melee . | . . . Knockbacks . | . . . Impact . | . . . Kinetic . | . . . Secondary . | . . . Self-Inflicted Damage 70 | . . 70 Shots 1 | . . 1 Rammed . | . . . Targets Rammed . | . . . Kicked . | . . . Crushed . | . . . Highest Temperature 282 | . 106 282 Average Temperature 32 | . 19 61 Received Heat Transfer 768 | . 360 408 Siege Activations . | . . . Robots Corrupted . | . . . Combat Hostiles . | . . . Parts Fried . | . . . Impact Corruptions . | . . . Robots Melted 1 | . . 1 Combat Hostiles 1 | . . 1 Parts Melted 10 | . 7 3 Heat Transferred 5360 | . 2074 3286 Parts Sabotaged . | . . . Parts Stolen . | . . . Parts Stripped . | . . . Power Chain Reactions . | . . . Missiles Intercepted . | . . . Alert | -11 -10 -9 ------- Run | Scr Mat Mat Peak Influence 583 | . 449 583 Initial 150 | . . 150 Average 253 | . 252 254 Maximum Alert Level 2 | . 2 2 Low Security (%) 40 | 100 38 42 Level 1 44 | . 54 34 Level 2 14 | . 6 22 Level 3 . | . . . Level 4 . | . . . Level 5 . | . . . High Security . | . . . Max Security . | . . . Squads Dispatched 12 | . 8 4 Investigation 5 | . 4 1 Extermination . | . . . Reinforcement 7 | . 4 3 Assault . | . . . Garrison . | . . . Intercept . | . . . Construction Impeded 1 | . . 1 Haulers Reinforced . | . . . Active Scanning Responses . | . . . Cargo Convoy Interrupts . | . . . Stealth | -11 -10 -9 --------- Run | Scr Mat Mat Distress Signals 2 | . 1 1 Communications Jammed . | . . . Distress Signals . | . . . Times Spotted 84 | . 46 38 Peak Tracking Total 6 | . 4 6 Tactical Retreats 1 | . 1 . Traps | -11 -10 -9 ------- Run | Scr Mat Mat Traps Triggered 3 | . 3 . Indirectly . | . . . Trap Hack Attempts . | . . . Triggered . | . . . Disarmed . | . . . Reprogrammed . | . . . Reused . | . . . Traps Extracted . | . . . Installed . | . . . Triggered . | . . . Machines | -11 -10 -9 ---------- Run | Scr Mat Mat Machines Disabled 4 | . . 4 Max in Single Turn 4 | . . 4 Machines Sabotaged . | . . . Garrisons Compromised . | . . . Overloaded Fab Kills . | . . . Hacking | -11 -10 -9 --------- Run | Scr Mat Mat Machines Accessed 7 | . 4 3 Terminals 3 | . 1 2 Fabricators . | . . . Repair Stations 2 | . 1 1 Recycling Units 2 | . 2 . Scanalyzers . | . . . Garrison Access . | . . . Total Hacks 13 | . 7 6 Successful 8 | . 4 4 Failed 5 | . 3 2 Catastrophic 1 | . 1 . Database Lockouts . | . . . Manual 3 | . 3 . Terminals 4 | . 1 3 Fabricators . | . . . Repair Stations 6 | . 3 3 Recycling Units 3 | . 3 . Scanalyzers . | . . . Garrison Access . | . . . Terminal Hacks 2 | . . 2 Prototype ID Bank 1 | . . 1 Branch Access Points 1 | . . 1 Fabricator Hacks . | . . . Repair Station Hacks 4 | . 2 2 Scan Component 2 | . 1 1 Repair 2 | . 1 1 Recycling Unit Hacks . | . . . Scanalyzer . | . . . Garrison Access Hacks . | . . . Unauthorized Hacks 2 | . 2 . Terminals . | . . . Fabricators . | . . . Repair Stations . | . . . Recycling Units 2 | . 2 . Tunnel 2 | . 2 . Scanalyzers . | . . . Garrison Access . | . . . Data Cores Recovered . | . . . Used . | . . . Hacking Detections 4 | . 2 2 Full Trace Events 2 | . 1 1 Feedback Events . | . . . Feedback Blocked . | . . . Robot Schematics Acquired . | . . . Robots Built . | . . . Authchips . | . . . Time . | . . . Total Robot Build Rating . | . . . Part Schematics Acquired . | . . . Parts Built . | . . . Authchips . | . . . Time . | . . . Total Part Build Rating . | . . . Parts Repaired 2 | . 1 1 Time 58 | . 26 32 Parts Recycled . | . . . Recycled Matter . | . . . Retrieved Matter . | . . . Retrieved Components . | . . . Parts Scanalyzed . | . . . Part Schematics Acquired . | . . . Parts Damaged . | . . . Bothacking | -11 -10 -9 ------------ Run | Scr Mat Mat Used RIF Installer . | . . . Robots Hacked . | . . . Non-combat . | . . . Combat . | . . . Robot Hacks Applied . | . . . Relay Couplers Released . | . . . Fabnet Peak Effective % . | . . . Robots Rewired . | . . . Allies Hacked . | . . . Hacks Repelled . | . . . Allies | -11 -10 -9 -------- Run | Scr Mat Mat Total Allies . | . . . Largest Group . | . . . Highest-Rated Group . | . . . Highest-Rated Ally . | . . . Total Orders . | . . . Ally Attacks . | . . . Total Damage . | . . . Kills . | . . . Allies Corrupted . | . . . Allies Melted . | . . . Intel | -11 -10 -9 ------- Run | Scr Mat Mat Robot Analysis Total . | . . . Derelict Logs Recovered . | . . . Drone Launches . | . . . Drone Recoveries . | . . . Exploration | -11 -10 -9 ------------- Run | Scr Mat Mat Turns Passed 2474 | 4 1239 1231 Spaces Moved 1127 | 1 563 563 Core 3 | . . 3 Treads 1114 | 1 563 550 Legs 10 | . . 10 Wheels . | . . . Hover . | . . . Flight . | . . . Fastest Speed 120 | 160 160 120 Average Speed 160 | 160 160 160 Slowest Speed 350 | 160 160 350 Overloaded Moves . | . . . Propulsion Burnouts . | . . . Robots Hopped . | . . . Cave-ins Triggered . | . . . Exploration Rate (%) 41 | 2 81 42 Regions Visited 2 Branch Regions . Pre-discovered Areas 2 | . 2 . Known Exits Taken . | . . . Unknown Exits Taken 2 | 1 1 . Scrap Searched . | . . . Spaces Dug 8 | . 8 . Terrain Destroyed 94 | . 44 50 Melee . | . . . Projectile . | . . . AOE 94 | . 44 50 Terrain Rammed . | . . . Walls Destroyed . | . . . Machines Disabled . | . . . Actions | -11 -10 -9 --------- Run | Scr Mat Mat Total 1473 | 6 739 728 Wait 73 | . 35 38 Move 1125 | . 562 563 Hop . | . . . Pick Up 12 | . 7 5 Fast Attach 15 | . 3 12 Attach 4 | 2 . 2 Detach 1 | . . 1 Swap 24 | . 16 8 Drop 28 | 4 9 15 Fire 191 | . 107 84 Melee . | . . . Ram . | . . . Kick . | . . . Crush . | . . . Escape Stasis . | . . . Rewire . | . . . Trap . | . . . Miscellaneous . | . . . Route ------- -11/Scrapyard -10/Materials (discovered 4 exits: *Mat x3 / [*Min]) -9/Materials (discovered 4 exits: *Min x2 / *Sto x2) History --------- Turn | Location | Event 5 | -11/Scrapyard | Discovered new exit (range 0) 5 | -11/Scrapyard | Entered Materials 189 | -10/Materials | Discovered new exit (range 14) 322 | -10/Materials | Discovered new exit (range 16) 327 | -10/Materials | Build established: Mutant 557 | -10/Materials | Discovered new exit (range 15) 608 | -10/Materials | Core integrity fell below 50% 698 | -10/Materials | Repaired Lgt. Treads 920 | -10/Materials | Discovered new exit (range 5) 1118 | -10/Materials | Build established: Scavenger-Mutant 1227 | -10/Materials | Core integrity fell below 20% 1244 | -10/Materials | Entered another Materials area 1244 | -9/Materials | Evolved 2 slots: Propulsion x2 1260 | -9/Materials | Identified exit to Mines 1260 | -9/Materials | Identified exit to Storage 2105 | -9/Materials | Lost 3 parts (3n) 2418 | -9/Materials | Repaired Cooling System 2475 | -9/Materials | Self-destructed Last Messages --------------- 02435_ Lgt. Treads destroyed. 02436_ Fusion Modulator explodes. 02436_ Repair Station disabled. 02436_ Lgt. Treads destroyed. 02437_ G-34 Mercenary destroyed. 02439_ K-01 Serf collects debris. 02450_ Acquired Aluminum Leg. 02452_ K-01 Serf collects debris. 02457_ U-05 Engineer lays Concrete. 02458_ Acquired Aluminum Leg. 02459_ U-05 Engineer lays Concrete. 02459_ K-01 Serf collects debris. 02460_ U-05 Engineer suffers critical hit (Burn). 02460_ U-05 Engineer lays Concrete. 02460_ ALERT: Construction progress impeded, dispatching reinforcements to local area. 02461_ U-05 Engineer lays Concrete. 02462_ K-01 Serf collects debris. 02463_ U-05 Engineer lays Concrete. 02470_ Acquired 22 matter. Map ----- +----------------------------------------------------+ | | | | | | | | | ?????????????????????????????????????????????????? | | ?????????????????????????????????????????????????? | | ?????????????????????????????????????????????????? | | ????????????????????????????????????????????????## | | ????????????????????????????????????????????##### | | ????????????????????????????????????????????# | | ????????????????????????????????????????????# """" | | ????????????????????????????????????????????# """" | | ???????????????????????###########??????????# """" | | >??????????????????????# #??????????# | | ???????????????????????#"""""""""##?????????# | | ??????????????????????##" #?????????# ! | | ??????????????????????# " #?????????# ! | | ???????????????????????#" #?????????# % | | ??????????????????????##" #????#????#####+ | | ??????????????????????# " #??? #??????# [ | | ??????????????????????##" % #?? ######## | | ???????????????????????#" %* ## | | ???????????????????????## % ## ^########! | | ????????????????????????#######+### g #?????# | | ?????????????????########### #?###### | | ??????????????+ o k !@ ! T #?# [ # ! | | ?????????????????########### #?# %%%[ | | ???????????????????######### #### #?# * %# ! | | ??????????????????# # ######+##### # | | ??????????????????# """ # ## *** # #[ | | ??????????????????# """ # ## """*""" # "" +% | | ??????????????????# """ [# ## """%""" # Y" # | | ??????????????????# [+% + """*""" # "" # | | ??????????????????# "" # ## """*""" # # | | ??????????????????# "T ######="""!""" ###### | | ??????????????????# "" #????#*%=[ + == | | ??????????????????# #????#*[% ######%! | | ??????????????????##########????#######+###????#* | | ???????????????????????????????????????????????# | | ??????????????????????????????????????????????? | | ??????????????????????????????????????????????? | | ?????????????????????????????????????????????? | | ??????????????????????????????????????????????#### | | ?????????????????????????????????????????????????? | | ?????????????????????????????????????????????????? | | ?????????????????????????????????????????????????? | | ?????????????????????????????????????????????????? | | ?????????????????????????????????????????????????? | | ?????????????????????????????????????????????????? | | ?????????????????????????????????????????????????? | +----------------------------------------------------+ Best States ------------- Heat Dissipation 50 Energy Generation 12 Energy Capacity 265 Matter Stores 300 Matter Capacity 300 Sight Range 16 Terrain Scan Density 10 Armor Coverage 225 Evasion (%) 45 Recoil Reduction 4 Item Schematics ----------------- None Robot Schematics ------------------ None Fabricated ------------ Nothing Alien Tech Used ----------------- None Achievements -------------- None Challenges ------------ None Game ------ Seed NovaUltimateGreatsword Manual? 0 Play Time 00:15:09 Cumulative 453.5 hours Start 2021.11.09 @ 16:46:56 End 2021.11.09 @ 16:59:29 Sessions 1 Manual Loads 0 Difficulty Rogue Special Mode None Game No. 451 Rogue 451 Adventurer 0 Explorer 0 Win Type - Total 9 Types 8/0/0/1/0/0/0/0/0 Lore% 80 Gallery% 93 Achievement% 70 Wizard Run 0 Options --------- ASCII 0 Keyboard 0 Movement Mouse Keybinds 1 Fullscreen 2 Font 24/Smallcaps Map View 76x50 Tactical HUD 1 Map Filters NONE Filters NONE Steam 1 RUN: 65fcaea9-778e-4ce8-81cf-693d28e0a986